[Event "Live Chess"]
[Site "Chess.com"]
[Date "2023.05.20"]
[Round "-"]
[White "alanmike75"]
[Black "Brooms1989"]
[Result "1-0"]
[WhiteElo "1510"]
[BlackElo "1005"]
[TimeControl "300"]
[EndTime "12:00:47 PDT"]
[Termination "alanmike75 won by checkmate"]

1. e4 {[%clk 0:04:57.8]} 1... e5 {[%clk 0:04:47.6]} 2. Nf3 {[%clk 0:04:56.2]}
2... Nc6 {[%clk 0:04:46]} 3. d4 {[%clk 0:04:54]} 3... exd4 {[%clk 0:04:44.2]} 4.
Bc4 {[%clk 0:04:52.9]} 4... Nf6 {[%clk 0:04:38.9]} 5. O-O {[%clk 0:04:49.3]}
5... Bc5 {[%clk 0:04:32.4]} 6. c3 {[%clk 0:04:41.4]} 6... O-O {[%clk 0:04:22.8]}
7. cxd4 {[%clk 0:04:39.2]} 7... Nxd4 {[%clk 0:04:22.2]} 8. Nxd4 {[%clk
0:04:37.4]} 8... Bxd4 {[%clk 0:04:22.1]} 9. Qxd4 {[%clk 0:04:36.1]} 9... d6
{[%clk 0:04:19]} 10. Bg5 {[%clk 0:04:30.8]} 10... Bd7 {[%clk 0:04:12.2]} 11.
Bxf6 {[%clk 0:04:28.8]} 11... Qxf6 {[%clk 0:04:12.1]} 12. Qxf6 {[%clk
0:04:27.4]} 12... gxf6 {[%clk 0:04:12]} 13. Nc3 {[%clk 0:04:24.8]} 13... Kh8
{[%clk 0:04:11.1]} 14. Nd5 {[%clk 0:04:22.9]} 14... b5 {[%clk 0:03:59.6]} 15.
Nxf6 {[%clk 0:04:15.3]} 15... Bc6 {[%clk 0:03:47.7]} 16. Bd5 {[%clk 0:04:12.3]}
16... Bxd5 {[%clk 0:03:43.6]} 17. exd5 {[%clk 0:04:09.6]} 17... Kg7 {[%clk
0:03:41.6]} 18. Ng4 {[%clk 0:04:06.7]} 18... Rg8 {[%clk 0:03:39.2]} 19. Ne3
{[%clk 0:04:05.2]} 19... h5 {[%clk 0:03:34.7]} 20. Rac1 {[%clk 0:04:03.4]} 20...
Rac8 {[%clk 0:03:31.8]} 21. Rc6 {[%clk 0:04:00.7]} 21... Kh7 {[%clk 0:03:29.1]}
22. Rfc1 {[%clk 0:03:58.1]} 22... Rg6 {[%clk 0:03:26.4]} 23. Rxc7 {[%clk
0:03:56]} 23... Rcg8 {[%clk 0:03:25.9]} 24. g3 {[%clk 0:03:54.4]} 24... h4
{[%clk 0:03:24.9]} 25. Rxf7+ {[%clk 0:03:51.1]} 25... Kh6 {[%clk 0:03:23.6]} 26.
Rf4 {[%clk 0:03:49.1]} 26... hxg3 {[%clk 0:03:21.7]} 27. fxg3 {[%clk 0:03:47.8]}
27... Kh7 {[%clk 0:03:12.4]} 28. Rc7+ {[%clk 0:03:45.4]} 28... Kh6 {[%clk
0:03:11.2]} 29. Nf5+ {[%clk 0:03:43.9]} 29... Kh5 {[%clk 0:03:09.4]} 30. Nxd6
{[%clk 0:03:38.8]} 30... Rxg3+ {[%clk 0:03:02.2]} 31. hxg3 {[%clk 0:03:36.9]}
31... Rxg3+ {[%clk 0:03:02.1]} 32. Kf2 {[%clk 0:03:35.8]} 32... Rh3 {[%clk
0:02:58.9]} 33. Rh7+ {[%clk 0:03:33.2]} 33... Kg5 {[%clk 0:02:56.4]} 34. Rxh3
{[%clk 0:03:29.9]} 34... Kxf4 {[%clk 0:02:56.3]} 35. Rf3+ {[%clk 0:03:28.5]}
35... Ke5 {[%clk 0:02:56.2]} 36. Nxb5 {[%clk 0:03:26.6]} 36... Kxd5 {[%clk
0:02:55.4]} 37. Nxa7 {[%clk 0:03:25.3]} 37... Kc5 {[%clk 0:02:54.3]} 38. Rb3
{[%clk 0:03:23.7]} 38... Kd6 {[%clk 0:02:52.6]} 39. Rc3 {[%clk 0:03:21.8]} 39...
Kd5 {[%clk 0:02:50.9]} 40. a4 {[%clk 0:03:20.5]} 40... Kd4 {[%clk 0:02:50.1]}
41. a5 {[%clk 0:03:19.3]} 41... Kd5 {[%clk 0:02:48.9]} 42. Nb5 {[%clk
0:03:17.8]} 42... Ke6 {[%clk 0:02:47.1]} 43. a6 {[%clk 0:03:16.7]} 43... Ke5
{[%clk 0:02:47]} 44. a7 {[%clk 0:03:15.5]} 44... Ke4 {[%clk 0:02:46.9]} 45.
a8=Q+ {[%clk 0:03:13.5]} 45... Ke5 {[%clk 0:02:46.3]} 46. Qd8 {[%clk 0:03:10.5]}
46... Ke4 {[%clk 0:02:45.2]} 47. Re3+ {[%clk 0:03:09.3]} 47... Kf5 {[%clk
0:02:45.1]} 48. Qf8+ {[%clk 0:03:07.7]} 48... Kg6 {[%clk 0:02:45]} 49. Rg3+
{[%clk 0:03:06.5]} 49... Kh7 {[%clk 0:02:44.9]} 50. Qf7+ {[%clk 0:03:01.8]}
50... Kh6 {[%clk 0:02:43.8]} 51. Qg6# {[%clk 0:02:59.6]} 1-0

[Event "Live Chess"]
[Site "Chess.com"]
[Date "2023.05.20"]
[Round "-"]
[White "MaximKris"]
[Black "tpm07"]
[Result "1-0"]
[WhiteElo "1891"]
[BlackElo "1946"]
[TimeControl "300"]
[EndTime "12:00:56 PDT"]
[Termination "MaximKris won by resignation"]

1. e4 {[%clk 0:04:58.1]} 1... c5 {[%clk 0:04:57.8]} 2. Nf3 {[%clk 0:04:57]} 2...
Nc6 {[%clk 0:04:56.3]} 3. Bb5 {[%clk 0:04:53.4]} 3... g6 {[%clk 0:04:52.8]} 4.
O-O {[%clk 0:04:51.1]} 4... Bg7 {[%clk 0:04:50.1]} 5. c3 {[%clk 0:04:47.3]} 5...
Nf6 {[%clk 0:04:46.2]} 6. d4 {[%clk 0:04:45.1]} 6... Nxe4 {[%clk 0:04:42.3]} 7.
d5 {[%clk 0:04:43.4]} 7... Nb8 {[%clk 0:04:38.9]} 8. Re1 {[%clk 0:04:41.4]} 8...
Nd6 {[%clk 0:04:36.3]} 9. c4 {[%clk 0:04:38.1]} 9... Nxb5 {[%clk 0:04:31]} 10.
cxb5 {[%clk 0:04:38]} 10... O-O {[%clk 0:04:29.2]} 11. Bg5 {[%clk 0:04:35.5]}
11... d6 {[%clk 0:04:23.7]} 12. Bxe7 {[%clk 0:04:33.8]} 12... Qe8 {[%clk
0:04:19.4]} 13. Bxf8 {[%clk 0:04:32.8]} 13... Qxf8 {[%clk 0:04:17.1]} 14. Qe2
{[%clk 0:04:32.1]} 14... Bd7 {[%clk 0:04:11.8]} 15. Qe7 {[%clk 0:04:30.3]} 15...
Bxb5 {[%clk 0:04:05.4]} 16. Qxb7 {[%clk 0:04:27.4]} 16... Bxb2 {[%clk
0:03:58.7]} 17. Qxa8 {[%clk 0:04:20.6]} 17... Bxa1 {[%clk 0:03:56.9]} 18. Na3
{[%clk 0:04:18.4]} 18... Ba4 {[%clk 0:03:48.7]} 19. Rxa1 {[%clk 0:04:15.6]} 1-0

[Event "Live Chess"]
[Site "Chess.com"]
[Date "2023.05.20"]
[Round "-"]
[White "ACx04"]
[Black "1600x"]
[Result "0-1"]
[WhiteElo "430"]
[BlackElo "1680"]
[TimeControl "300"]
[EndTime "12:01:02 PDT"]
[Termination "1600x won by checkmate"]

1. e4 {[%clk 0:04:59]} 1... e5 {[%clk 0:04:58.8]} 2. Bc4 {[%clk 0:04:57.5]} 2...
Nf6 {[%clk 0:04:57.7]} 3. Nf3 {[%clk 0:04:56.4]} 3... Nxe4 {[%clk 0:04:49.7]} 4.
Qe2 {[%clk 0:04:52.8]} 4... d5 {[%clk 0:04:48.3]} 5. Bb3 {[%clk 0:04:49.5]} 5...
f6 {[%clk 0:04:46.2]} 6. O-O {[%clk 0:04:47.1]} 6... Nc6 {[%clk 0:04:44.4]} 7.
d3 {[%clk 0:04:45.5]} 7... Nc5 {[%clk 0:04:41.5]} 8. c4 {[%clk 0:04:39.1]} 8...
Be6 {[%clk 0:04:38.1]} 9. cxd5 {[%clk 0:04:37.3]} 9... Bxd5 {[%clk 0:04:37.2]}
10. Bxd5 {[%clk 0:04:36.1]} 10... Qxd5 {[%clk 0:04:35.9]} 11. Be3 {[%clk
0:04:31.8]} 11... Qxd3 {[%clk 0:04:33.9]} 12. Qxd3 {[%clk 0:04:30.5]} 12... Nxd3
{[%clk 0:04:33.2]} 13. Nbd2 {[%clk 0:04:29.5]} 13... Ncb4 {[%clk 0:04:32.4]} 14.
Ne4 {[%clk 0:04:27.1]} 14... Nxb2 {[%clk 0:04:30]} 15. Rab1 {[%clk 0:04:25.5]}
15... N4d3 {[%clk 0:04:27.6]} 16. Rfd1 {[%clk 0:04:22.5]} 16... Nxd1 {[%clk
0:04:25.9]} 17. Rxd1 {[%clk 0:04:21]} 17... Nb4 {[%clk 0:04:24.8]} 18. Bc5
{[%clk 0:04:14.4]} 18... Kf7 {[%clk 0:04:24.7]} 19. Bxb4 {[%clk 0:04:13.1]}
19... Bxb4 {[%clk 0:04:23.1]} 20. Rd7+ {[%clk 0:04:11.7]} 20... Ke8 {[%clk
0:04:21.5]} 21. Rxc7 {[%clk 0:04:09.8]} 21... f5 {[%clk 0:04:18]} 22. Rxb7
{[%clk 0:04:08]} 22... fxe4 {[%clk 0:04:16.9]} 23. Rxb4 {[%clk 0:04:06.7]} 23...
exf3 {[%clk 0:04:15.3]} 24. gxf3 {[%clk 0:04:06]} 24... Ke7 {[%clk 0:04:13.7]}
25. Rb7+ {[%clk 0:04:04.1]} 25... Kf6 {[%clk 0:04:11.9]} 26. h3 {[%clk
0:04:01.9]} 26... Rhb8 {[%clk 0:04:08.2]} 27. Rxb8 {[%clk 0:03:58.5]} 27... Rxb8
{[%clk 0:04:07.3]} 28. a4 {[%clk 0:03:57.3]} 28... Kf5 {[%clk 0:04:04.3]} 29.
Kg2 {[%clk 0:03:56.7]} 29... Kf4 {[%clk 0:04:00.5]} 30. h4 {[%clk 0:03:54.1]}
30... Rb1 {[%clk 0:03:58.8]} 31. Kh3 {[%clk 0:03:52.6]} 31... Kxf3 {[%clk
0:03:55.8]} 32. Kh2 {[%clk 0:03:50]} 32... h5 {[%clk 0:03:53.8]} 33. a5 {[%clk
0:03:43]} 33... a6 {[%clk 0:03:50.6]} 34. Kh3 {[%clk 0:03:38.6]} 34... Rh1#
{[%clk 0:03:47.7]} 0-1

[Event "Live Chess"]
[Site "Chess.com"]
[Date "2023.05.20"]
[Round "-"]
[White "Tushinskiy"]
[Black "manthanit"]
[Result "1-0"]
[WhiteElo "2117"]
[BlackElo "944"]
[TimeControl "300"]
[EndTime "12:01:05 PDT"]
[Termination "Tushinskiy won by resignation"]

1. d4 {[%clk 0:04:57.2]} 1... d5 {[%clk 0:04:56]} 2. c3 {[%clk 0:04:57.1]} 2...
Nf6 {[%clk 0:04:53.5]} 3. Nf3 {[%clk 0:04:57]} 3... Nc6 {[%clk 0:04:52.8]} 4.
Bf4 {[%clk 0:04:56.4]} 4... a6 {[%clk 0:04:50.8]} 5. Nbd2 {[%clk 0:04:55.4]}
5... h6 {[%clk 0:04:45.4]} 6. e3 {[%clk 0:04:53.8]} 6... e6 {[%clk 0:04:42]} 7.
Bd3 {[%clk 0:04:52.8]} 7... Bd6 {[%clk 0:04:40.3]} 8. Bg3 {[%clk 0:04:51.6]}
8... Qe7 {[%clk 0:04:36.6]} 9. Ne5 {[%clk 0:04:46.7]} 9... Bd7 {[%clk
0:04:29.5]} 10. f4 {[%clk 0:04:44.7]} 10... O-O-O {[%clk 0:04:18.9]} 11. Qe2
{[%clk 0:04:08.1]} 11... Kb8 {[%clk 0:04:02.2]} 12. b4 {[%clk 0:04:04.3]} 12...
Ng8 {[%clk 0:03:45]} 13. b5 {[%clk 0:03:57.6]} 13... axb5 {[%clk 0:03:38]} 14.
Bxb5 {[%clk 0:03:54.2]} 14... Nxe5 {[%clk 0:03:28.9]} 15. fxe5 {[%clk
0:03:49.1]} 15... Bxb5 {[%clk 0:03:27.7]} 16. Qxb5 {[%clk 0:03:49]} 16... c6
{[%clk 0:03:22]} 17. exd6 {[%clk 0:03:46.4]} 17... cxb5 {[%clk 0:03:18.4]} 18.
dxe7+ {[%clk 0:03:44.7]} 1-0

[Event "Live Chess"]
[Site "Chess.com"]
[Date "2023.05.20"]
[Round "-"]
[White "Ninifu"]
[Black "Ian-Morley"]
[Result "1-0"]
[WhiteElo "1999"]
[BlackElo "978"]
[TimeControl "300"]
[EndTime "12:01:09 PDT"]
[Termination "Ninifu won by resignation"]

1. d4 {[%clk 0:04:56.5]} 1... e5 {[%clk 0:04:58.8]} 2. dxe5 {[%clk 0:04:55]}
2... Nc6 {[%clk 0:04:58]} 3. Nf3 {[%clk 0:04:54.2]} 3... Qe7 {[%clk 0:04:57.2]}
4. Bf4 {[%clk 0:04:53.1]} 4... Qb4+ {[%clk 0:04:54.3]} 5. Bd2 {[%clk 0:04:52.3]}
5... Qxb2 {[%clk 0:04:52.9]} 6. Nc3 {[%clk 0:04:51.5]} 6... Bb4 {[%clk
0:04:51.2]} 7. Rb1 {[%clk 0:04:49.7]} 7... Qa3 {[%clk 0:04:35.9]} 8. Rb3 {[%clk
0:04:46.9]} 8... Qa5 {[%clk 0:04:32.3]} 9. e4 {[%clk 0:04:35]} 9... Nge7 {[%clk
0:04:23.4]} 10. Bd3 {[%clk 0:04:06.8]} 10... O-O {[%clk 0:04:20.2]} 11. O-O
{[%clk 0:04:05.8]} 11... Ng6 {[%clk 0:04:17.7]} 12. a3 {[%clk 0:04:01.9]} 12...
Bxc3 {[%clk 0:04:16.3]} 13. Bxc3 {[%clk 0:04:00.5]} 13... Qc5 {[%clk 0:04:09]}
14. Bb2 {[%clk 0:03:49.1]} 14... Ncxe5 {[%clk 0:04:07.2]} 15. Nxe5 {[%clk
0:03:43.2]} 15... Nxe5 {[%clk 0:04:06.2]} 16. Rb5 {[%clk 0:03:42.1]} 16... Qd6
{[%clk 0:03:52.7]} 17. Rxe5 {[%clk 0:03:30.1]} 17... f6 {[%clk 0:03:47.9]} 18.
Bc4+ {[%clk 0:03:24]} 18... Kh8 {[%clk 0:03:46.9]} 19. Qxd6 {[%clk 0:03:23.1]}
19... cxd6 {[%clk 0:03:46.1]} 20. Re7 {[%clk 0:03:16.2]} 20... a6 {[%clk
0:03:42.2]} 21. Rd1 {[%clk 0:03:14]} 21... b5 {[%clk 0:03:40.8]} 22. Bb3 {[%clk
0:03:09.1]} 22... Bb7 {[%clk 0:03:39.6]} 23. Rxd6 {[%clk 0:03:08.1]} 23... Rfe8
{[%clk 0:03:35.8]} 24. Rdxd7 {[%clk 0:03:03.5]} 24... Bc6 {[%clk 0:03:30.9]} 25.
Rc7 {[%clk 0:02:54.6]} 25... Rxe7 {[%clk 0:03:26.9]} 26. Rxe7 {[%clk 0:02:53.1]}
26... Rd8 {[%clk 0:03:26.2]} 27. h3 {[%clk 0:02:47]} 27... Rd2 {[%clk
0:03:21.6]} 28. Rc7 {[%clk 0:02:43.5]} 28... h6 {[%clk 0:03:18.8]} 1-0

[Event "Live Chess"]
[Site "Chess.com"]
[Date "2023.05.20"]
[Round "-"]
[White "Sir_Sigmund"]
[Black "JoeyCage"]
[Result "1/2-1/2"]
[WhiteElo "1918"]
[BlackElo "2309"]
[TimeControl "300"]
[EndTime "12:01:11 PDT"]
[Termination "Game drawn by agreement"]

1. e4 {[%clk 0:04:59]} 1... c5 {[%clk 0:04:58.8]} 2. f4 {[%clk 0:04:57.8]} 2...
Nc6 {[%clk 0:04:58.1]} 3. Nf3 {[%clk 0:04:56.4]} 3... a6 {[%clk 0:04:57]} 4. d3
{[%clk 0:04:54.7]} 4... b5 {[%clk 0:04:56.1]} 5. Be2 {[%clk 0:04:53.6]} 5... Bb7
{[%clk 0:04:55.3]} 6. O-O {[%clk 0:04:52.2]} 6... e6 {[%clk 0:04:54.4]} 7. Be3
{[%clk 0:04:47.1]} 7... d5 {[%clk 0:04:52.3]} 8. c3 {[%clk 0:04:45.9]} 8... d4
{[%clk 0:04:50]} 9. Bf2 {[%clk 0:04:41]} 9... dxc3 {[%clk 0:04:48.5]} 10. bxc3
{[%clk 0:04:40.2]} 10... Nf6 {[%clk 0:04:46.5]} 11. Nbd2 {[%clk 0:04:37.2]}
11... Qd7 {[%clk 0:04:44.7]} 12. h3 {[%clk 0:04:35.6]} 12... Rd8 {[%clk
0:04:43.1]} 13. Qc2 {[%clk 0:04:30.3]} 13... Be7 {[%clk 0:04:40.4]} 14. Rad1
{[%clk 0:04:27.7]} 14... Qc8 {[%clk 0:04:38]} 15. g4 {[%clk 0:04:11.4]} 15...
Nd7 {[%clk 0:04:36.5]} 16. Rfe1 {[%clk 0:03:51.6]} 16... Qc7 {[%clk 0:04:34.2]}
17. e5 {[%clk 0:03:41]} 17... h5 {[%clk 0:04:30]} 18. g5 {[%clk 0:03:23.4]}
18... f6 {[%clk 0:04:23.6]} 19. gxf6 {[%clk 0:03:11.8]} 19... gxf6 {[%clk
0:04:22.1]} 20. d4 {[%clk 0:03:09.7]} 20... f5 {[%clk 0:04:18.5]} 21. Ng5 {[%clk
0:02:58.1]} 21... Nf8 {[%clk 0:04:15.1]} 22. Ndf3 {[%clk 0:02:37.3]} 22... cxd4
{[%clk 0:03:49.2]} 23. cxd4 {[%clk 0:02:22.4]} 23... Rc8 {[%clk 0:03:47.7]} 24.
Rc1 {[%clk 0:02:08.2]} 24... Qd7 {[%clk 0:03:42.2]} 25. Qb3 {[%clk 0:01:52.7]}
25... Na5 {[%clk 0:03:34.5]} 26. Rxc8+ {[%clk 0:01:41.7]} 26... Qxc8 {[%clk
0:03:33.2]} 27. Qb2 {[%clk 0:01:36.4]} 27... Nc4 {[%clk 0:03:31.1]} 28. Bxc4
{[%clk 0:01:32.9]} 28... Qxc4 {[%clk 0:03:29.4]} 29. Rc1 {[%clk 0:01:32.2]}
29... Qd5 {[%clk 0:03:28.1]} 30. Qb3 {[%clk 0:01:28.4]} 30... Bxg5 {[%clk
0:03:16.9]} 31. Qxd5 {[%clk 0:01:23.9]} 31... Bxd5 {[%clk 0:03:14.5]} 32. Nxg5
{[%clk 0:01:23.4]} 32... Bxa2 {[%clk 0:03:10.9]} 33. Rc6 {[%clk 0:01:16.4]}
33... a5 {[%clk 0:03:04.9]} 34. Be1 {[%clk 0:01:02.1]} 34... a4 {[%clk
0:03:02.7]} 35. Bb4 {[%clk 0:00:58.7]} 35... Bd5 {[%clk 0:02:54.5]} 36. Rc8+
{[%clk 0:00:54.2]} 36... Kd7 {[%clk 0:02:53.2]} 37. Rxf8 {[%clk 0:00:52.1]}
37... Rxf8 {[%clk 0:02:51.8]} 38. Bxf8 {[%clk 0:00:52]} 38... Kc6 {[%clk
0:02:49]} 39. Bb4 {[%clk 0:00:50.6]} 39... Bc4 {[%clk 0:02:43.8]} 40. Kf2 {[%clk
0:00:49.3]} 40... Kd5 {[%clk 0:02:42.7]} 41. Ke3 {[%clk 0:00:44.1]} 41... Bf1
{[%clk 0:02:39.8]} 42. h4 {[%clk 0:00:40.9]} 1/2-1/2

[Event "Live Chess"]
[Site "Chess.com"]
[Date "2023.05.20"]
[Round "-"]
[White "Bot_Boy"]
[Black "kevinmilleruk"]
[Result "0-1"]
[WhiteElo "332"]
[BlackElo "1113"]
[TimeControl "300"]
[EndTime "12:01:17 PDT"]
[Termination "kevinmilleruk won on time"]

1. e4 {[%clk 0:04:57.5]} 1... e5 {[%clk 0:04:58.9]} 2. Bc4 {[%clk 0:04:54]} 2...
Nf6 {[%clk 0:04:57.6]} 3. d3 {[%clk 0:04:49.1]} 3... Bc5 {[%clk 0:04:55.4]} 4.
Nf3 {[%clk 0:04:47.4]} 4... O-O {[%clk 0:04:52.5]} 5. Nxe5 {[%clk 0:04:40.7]}
5... d6 {[%clk 0:04:47.8]} 6. Nf3 {[%clk 0:04:25.2]} 6... Bg4 {[%clk 0:04:45.6]}
7. O-O {[%clk 0:04:23.1]} 7... Nc6 {[%clk 0:04:43.8]} 8. Qe1 {[%clk 0:04:10.7]}
8... Bxf3 {[%clk 0:04:39.8]} 9. gxf3 {[%clk 0:04:08.9]} 9... Nd4 {[%clk
0:04:38.8]} 10. Qd1 {[%clk 0:03:50.5]} 10... Nd7 {[%clk 0:04:21.7]} 11. c3
{[%clk 0:03:43.3]} 11... Ne6 {[%clk 0:04:16.9]} 12. Bxe6 {[%clk 0:03:28.3]}
12... fxe6 {[%clk 0:04:14.9]} 13. d4 {[%clk 0:03:18.9]} 13... Bb6 {[%clk
0:04:09.9]} 14. Nd2 {[%clk 0:02:45.3]} 14... Qf6 {[%clk 0:04:06.4]} 15. Kh1
{[%clk 0:02:30.4]} 15... e5 {[%clk 0:04:05]} 16. Rg1 {[%clk 0:02:18]} 16... exd4
{[%clk 0:04:03.1]} 17. c4 {[%clk 0:01:51.3]} 17... Ne5 {[%clk 0:03:55.2]} 18.
Rg3 {[%clk 0:01:27.7]} 18... Nd3 {[%clk 0:03:49.4]} 19. Qe2 {[%clk 0:01:01.3]}
19... Ne5 {[%clk 0:03:44]} 20. Nf1 {[%clk 0:00:31.7]} 20... d3 {[%clk
0:03:42.4]} 21. Qd1 {[%clk 0:00:13.8]} 21... Bxf2 {[%clk 0:03:38.8]} 22. Bg5
{[%clk 0:00:07.6]} 22... Qf7 {[%clk 0:03:30.7]} 23. f4 {[%clk 0:00:05]} 23...
Bxg3 {[%clk 0:03:28.5]} 24. Nxg3 {[%clk 0:00:00.8]} 24... Nxc4 {[%clk
0:03:23.7]} 0-1

[Event "Live Chess"]
[Site "Chess.com"]
[Date "2023.05.20"]
[Round "-"]
[White "KajusM"]
[Black "Enhard"]
[Result "1-0"]
[WhiteElo "2284"]
[BlackElo "1453"]
[TimeControl "300"]
[EndTime "12:01:17 PDT"]
[Termination "KajusM won by resignation"]

1. e4 {[%clk 0:04:59.3]} 1... c6 {[%clk 0:04:57.7]} 2. Nc3 {[%clk 0:04:57.9]}
2... d5 {[%clk 0:04:56.8]} 3. Nf3 {[%clk 0:04:56.1]} 3... dxe4 {[%clk
0:04:53.1]} 4. Nxe4 {[%clk 0:04:56]} 4... Bg4 {[%clk 0:04:51.8]} 5. h3 {[%clk
0:04:50.8]} 5... Bxf3 {[%clk 0:04:49.9]} 6. Qxf3 {[%clk 0:04:49.7]} 6... Nf6
{[%clk 0:04:47.7]} 7. Bc4 {[%clk 0:04:47.7]} 7... e6 {[%clk 0:04:44.7]} 8. O-O
{[%clk 0:04:46.1]} 8... Be7 {[%clk 0:04:42.8]} 9. d3 {[%clk 0:04:41.4]} 9...
Nbd7 {[%clk 0:04:40.3]} 10. Bb3 {[%clk 0:04:32.8]} 10... O-O {[%clk 0:04:37.7]}
11. Bg5 {[%clk 0:04:30.9]} 11... Nd5 {[%clk 0:04:32.5]} 12. Bxe7 {[%clk
0:04:29.3]} 12... Qxe7 {[%clk 0:04:30]} 13. Rfe1 {[%clk 0:04:28.3]} 13... Qd8
{[%clk 0:04:23.5]} 14. Rad1 {[%clk 0:04:25.5]} 14... h6 {[%clk 0:04:21.8]} 15.
Nd6 {[%clk 0:04:21.1]} 15... Rb8 {[%clk 0:04:17.2]} 16. d4 {[%clk 0:04:18.6]}
16... N5f6 {[%clk 0:04:09.8]} 17. c4 {[%clk 0:04:16.7]} 17... Ne8 {[%clk
0:04:08]} 18. Ne4 {[%clk 0:04:14.4]} 18... Ndf6 {[%clk 0:04:06.3]} 19. d5 {[%clk
0:04:13]} 19... exd5 {[%clk 0:04:02.5]} 20. cxd5 {[%clk 0:04:11.3]} 20... cxd5
{[%clk 0:04:00.7]} 21. Nxf6+ {[%clk 0:04:07.8]} 21... Nxf6 {[%clk 0:03:59.3]}
22. Bxd5 {[%clk 0:04:06.3]} 22... Nxd5 {[%clk 0:03:57.9]} 23. Rxd5 {[%clk
0:04:06.2]} 23... Qb6 {[%clk 0:03:53.4]} 24. b3 {[%clk 0:04:00.8]} 24... Rbd8
{[%clk 0:03:48.4]} 25. Red1 {[%clk 0:03:59.4]} 25... Rxd5 {[%clk 0:03:47.2]} 26.
Qxd5 {[%clk 0:03:59.3]} 26... a6 {[%clk 0:03:42.9]} 27. Qd6 {[%clk 0:03:57.6]}
27... Qa5 {[%clk 0:03:37.3]} 28. a4 {[%clk 0:03:51.6]} 28... b5 {[%clk
0:03:31.3]} 29. Qc5 {[%clk 0:03:48.3]} 29... Rb8 {[%clk 0:02:49.3]} 30. Qe5
{[%clk 0:03:37.8]} 30... Qb6 {[%clk 0:02:45.4]} 31. a5 {[%clk 0:03:34.8]} 31...
Qb7 {[%clk 0:02:38.9]} 32. b4 {[%clk 0:03:32.8]} 32... Rf8 {[%clk 0:02:36.4]}
33. Qd5 {[%clk 0:03:28.6]} 33... Qe7 {[%clk 0:02:28.9]} 34. Qd6 {[%clk
0:03:26.6]} 34... Qe2 {[%clk 0:02:20]} 35. Rf1 {[%clk 0:03:19]} 35... Ra8 {[%clk
0:02:10]} 36. Qc6 {[%clk 0:03:14.6]} 36... Qe8 {[%clk 0:02:08.2]} 37. Rc1 {[%clk
0:03:08.5]} 37... Qxc6 {[%clk 0:02:05.5]} 38. Rxc6 {[%clk 0:03:08.4]} 38... Kf8
{[%clk 0:02:04.2]} 39. f4 {[%clk 0:03:05.9]} 39... Ra7 {[%clk 0:02:02.4]} 40.
Kf2 {[%clk 0:03:04.7]} 40... g6 {[%clk 0:02:00.3]} 41. g4 {[%clk 0:03:03.5]}
41... Kg7 {[%clk 0:01:56.9]} 42. f5 {[%clk 0:03:01.9]} 42... gxf5 {[%clk
0:01:47.1]} 43. gxf5 {[%clk 0:03:01.8]} 43... h5 {[%clk 0:01:42.4]} 44. Ke3
{[%clk 0:02:58.5]} 44... Re7+ {[%clk 0:01:34.8]} 45. Kf4 {[%clk 0:02:56.9]}
45... Ra7 {[%clk 0:01:33.5]} 46. Ke5 {[%clk 0:02:52.9]} 1-0

[Event "Live Chess"]
[Site "Chess.com"]
[Date "2023.05.20"]
[Round "-"]
[White "PLZ909"]
[Black "Ferrarifan27"]
[Result "0-1"]
[WhiteElo "1275"]
[BlackElo "2103"]
[TimeControl "300"]
[EndTime "12:01:27 PDT"]
[Termination "Ferrarifan27 won by resignation"]

1. d4 {[%clk 0:04:58.5]} 1... Nf6 {[%clk 0:04:58]} 2. Bf4 {[%clk 0:04:57.3]}
2... c5 {[%clk 0:04:56.5]} 3. c3 {[%clk 0:04:55.5]} 3... Qb6 {[%clk 0:04:54.5]}
4. Qb3 {[%clk 0:04:54.4]} 4... Qxb3 {[%clk 0:04:52.7]} 5. axb3 {[%clk
0:04:53.3]} 5... cxd4 {[%clk 0:04:51.1]} 6. cxd4 {[%clk 0:04:50]} 6... Nc6
{[%clk 0:04:50.3]} 7. e3 {[%clk 0:04:48.3]} 7... Nd5 {[%clk 0:04:47]} 8. Nf3
{[%clk 0:04:40.7]} 8... Nxf4 {[%clk 0:04:45.8]} 9. exf4 {[%clk 0:04:39.1]} 9...
g6 {[%clk 0:04:42.9]} 10. Bd3 {[%clk 0:04:21.7]} 10... Bg7 {[%clk 0:04:38.6]}
11. f5 {[%clk 0:04:11]} 11... Nxd4 {[%clk 0:04:35.4]} 12. fxg6 {[%clk
0:04:04.5]} 12... Nxf3+ {[%clk 0:04:22.4]} 13. gxf3 {[%clk 0:04:03.2]} 13...
hxg6 {[%clk 0:04:21.6]} 14. Nd2 {[%clk 0:03:58.9]} 14... Bxb2 {[%clk 0:04:17.8]}
0-1